fUSD/lending_fUSD_20240927
["ID","MTS","AMOUNT","RATE_DAILY","PERIOD"]
[339354181,1727460640358,-1109.26027776,0.000129,2]
[339354182,1727460640370,-4936.4916975,0.000129,2]
[339354183,1727460640381,-880.12,0.000129,2]
[339354184,1727460640394,-308.42346545,0.000129,2]
[339354185,1727460640406,-645.49882476,0.000129,2]
[339354186,1727460640418,-386.41072083,0.000129,2]
[339354187,1727460640429,-348.23005832,0.000129,2]
[339354188,1727460640673,-8289.3,0.000129,2]
[339354189,1727460640685,-20973.64934183,0.000129,2]
[339354190,1727460640696,-331.44623355,0.000129,2]
[339354192,1727460640707,-985.8689958,0.000129,2]
[339354194,1727460640719,-796.28249317,0.000129,2]
[339354196,1727460640731,-1677.65345248,0.000129,2]
[339354199,1727460640742,-4503.46066958,0.000129,2]
[339354201,1727460640753,-402.62751329,0.000129,2]
[339354203,1727460640765,-2400.47475159,0.000129,2]
[339354205,1727460640776,-9876.60459717,0.000129,2]
[339354207,1727460640787,-511.70455756,0.000129,2]
[339354209,1727460640799,-616.89321857,0.000129,2]
[339354211,1727460640811,-1637.29710056,0.000129,2]
[339354214,1727460640832,-982.24203917,0.000129,2]
[339354216,1727460640843,-927.22751103,0.000129,2]
[339354218,1727460640854,-714.13926867,0.000129,2]
[339354220,1727460640865,-11809.42168032,0.000129,2]
[339354223,1727460640884,-1370.37733886,0.000129,2]
[339354225,1727460640896,-681.43362743,0.000129,2]
[339354227,1727460640908,-818.06656972,0.000129,2]
[339354229,1727460640919,-540.54136045,0.000129,2]
[339354232,1727460640932,-1048.582763,0.000129,2]
[339354234,1727460640943,-846.52210567,0.000129,2]
[339354236,1727460640955,-9894.76560632,0.000129,2]
[339354238,1727460640966,-662.68309162,0.000129,2]
[339354240,1727460640978,-384.644286,0.000129,2]
[339354242,1727460640990,-10509.78086908,0.000129,2]
[339354244,1727460640999,-500.0,0.000129,2]
[339354246,1727460641010,-4112.40879379,0.000129,2]
[339354249,1727460641021,-2586.02150144,0.000129,2]
[339354251,1727460641033,-1217.27,0.000129,2]
[339354254,1727460641049,-1601.14580239,0.000129,2]
[339354256,1727460641064,-489.17891229,0.000129,2]
[339354258,1727460641076,-558.89350208,0.000129,2]
[339354260,1727460641088,-4680.98148801,0.000129,2]
[339354262,1727460641097,-27261.34614191,0.000129,2]
[339354264,1727460641109,-13563.56734335,0.000129,2]
[339354267,1727460641121,-408.77464363,0.000129,2]
[339354269,1727460641135,-1986.15335335,0.000129,2]
[339354271,1727460641146,-8674.74646238,0.000129,2]
[339354273,1727460641158,-323.21934277,0.000129,2]
[339354276,1727460641175,-745565.1906637,0.000129,2]
[339354278,1727460641186,-215039.92691491,0.000129,2]
[339354280,1727460641200,-344475.0874631,0.000129,2]
[339354282,1727460641211,-156894.73642967,0.000129,2]
[339354284,1727460641223,-1001.60210072,0.000129,2]
[339354313,1727460641511,150.0,0.0001111,2]
[339354477,1727460643259,-990.255,0.000129,2]
[339354490,1727460643361,-737.99988251,0.000129,2]
[339354492,1727460643372,-9843.08891014,0.000129,2]
[339354494,1727460643383,-1838.78,0.000129,2]
[339354496,1727460643394,-16338.57730149,0.000129,2]
[339354498,1727460643405,-677.73625,0.000129,2]
[339354500,1727460643416,-409.34192602,0.000129,2]
[339354502,1727460643427,-944.2392205,0.000129,2]
[339354504,1727460643439,-298.93134934,0.000129,2]
[339354506,1727460643449,-26440.5105801,0.000129,2]
[339354509,1727460643460,-20210.40040686,0.000129,2]
[339354515,1727460643517,-1789.29207492,0.000129,2]
[339354517,1727460643528,-1598.31428799,0.000129,2]
[339354520,1727460643542,-735.896,0.000129,2]
[339354522,1727460643555,-2389.74404693,0.000129,2]
[339354524,1727460643566,-1323.34911343,0.000129,2]
[339354526,1727460643577,-5400.0,0.000129,2]
[339354528,1727460643587,-366.92254671,0.000129,2]
[339354531,1727460643598,-1113.8701207,0.000129,2]
[339354532,1727460643609,-7488.03175676,0.000129,2]
[339354595,1727460646219,-566.0,0.00012899,2]
[339354597,1727460646228,-1567.07562019,0.000129,2]
[339354599,1727460646240,-493.70431179,0.000129,2]
[339354601,1727460646252,-674.79429573,0.000129,2]
[339354603,1727460646263,-89984.19819147,0.000129,2]
[339354606,1727460646274,-1401.42201098,0.000129,2]
[339354608,1727460646285,-618.3903605,0.000129,2]
[339354609,1727460646297,-8888.09487666,0.000129,2]
[339354610,1727460646308,-879.9737992,0.000129,2]
[339354611,1727460646321,-3690.46625153,0.000129,2]
[339354612,1727460646333,-587.59094188,0.000129,2]
[339354613,1727460646345,-400.0,0.000129,2]
[339354614,1727460646356,-557.8322401,0.000129,2]
[339354615,1727460646367,-685.11662691,0.000129,2]
[339354616,1727460646379,-3972.33381361,0.000129,2]
[339354617,1727460646390,-119178.34962962,0.000129,2]
[339354618,1727460646401,-10164.3352765,0.000129,2]
[339354619,1727460646412,-2283.42218229,0.000129,2]
[339354620,1727460646423,-36801.46384279,0.000129,2]
[339354621,1727460646434,-2615.29685025,0.000129,2]
[339354622,1727460646445,-2481.06096,0.000129,2]
[339354623,1727460646456,-3225.84215097,0.000129,2]
[339354624,1727460646467,-6278.67110128,0.000129,2]
[339354625,1727460646479,-438.217861,0.000129,2]
[339354626,1727460646490,-432.00902886,0.000129,2]
[339354627,1727460646505,-1269.0,0.000129,2]
[339354628,1727460646516,-10152.93128189,0.000129,2]
[339354629,1727460646527,-1415.44956061,0.000129,2]
[339354630,1727460646538,-946.21399857,0.000129,2]
[339354631,1727460646549,-34567.01136628,0.000129,2]
[339354632,1727460646560,-43150.4207702,0.000129,2]
[339354633,1727460646572,-83844.72194806,0.000129,2]
[339354634,1727460646583,-274.50931672,0.000129,2]
[339354635,1727460646594,-544.09853941,0.000129,2]
[339354636,1727460646610,-805.58226419,0.000129,2]
[339354637,1727460646621,-635.75,0.000129,2]
[339354638,1727460646632,-1290.00000001,0.000129,2]
[339354639,1727460646643,-3922.06321715,0.000129,2]
[339354641,1727460646655,-312.64,0.000129,2]
[339354642,1727460646666,-675.75650086,0.000129,2]
[339354643,1727460646677,-4050.58204498,0.000129,2]
[339354644,1727460646688,-550.0,0.000129,2]
[339354645,1727460646699,-2420.86061955,0.000129,2]
[339354646,1727460646710,-17189.36167256,0.000129,2]
[339354647,1727460646723,-8087.42770433,0.000129,2]
[339354648,1727460646735,-15651.80138247,0.000129,2]
[339354649,1727460646748,-10739.52606235,0.000129,2]
[339354650,1727460646759,-481.61185414,0.000129,2]
[339354651,1727460646770,-10391.97917367,0.000129,2]
[339354652,1727460646783,-873.74712415,0.000129,2]
[339354653,1727460646794,-626.08111507,0.000129,2]
[339354654,1727460646805,-4369.62043342,0.000129,2]
[339354655,1727460646817,-5022.72191446,0.000129,2]
[339354656,1727460658789,153.24,9.589e-05,2]
[339354657,1727460664842,566.1656,0.00011018,2]
[339354658,1727461000591,299.88,0.00010959,2]
[339354659,1727461027776,271.14,9.874e-05,2]
[339354660,1727461261875,287.55,0.00013918,30]
[339354661,1727461553414,257.58,9.383e-05,2]
[339354720,1727461618987,165.93,0.00010959,2]
[339354738,1727461831506,-277.5783648,0.00011271,2]
[339354739,1727461831519,-22.4216352,0.00011271,2]
[339354740,1727461831531,-1608.41609841,0.00011272,2]
[339354741,1727461831549,-1285.70283055,0.00011272,2]
[339354742,1727461831561,-357.46371413,0.00011272,2]
[339354743,1727461831574,-1900.0,0.00011272,2]
[339354744,1727461831588,-3952.11216265,0.00011272,2]
[339354745,1727461831600,-10402.4493057,0.00011272,2]
[339354746,1727461831612,-2018.97890566,0.00011272,2]
[339354747,1727461831625,-400.0,0.00011272,2]
[339354748,1727461831637,-1799.06697044,0.00011272,2]
[339354749,1727461831649,-175.81001246,0.00011272,2]
[339354750,1727461831659,-250.0,0.00011272,2]
[339354751,1727461831670,-250.0,0.00011304,2]
[339354752,1727461831680,-150.0,0.00011326,2]
[339354753,1727461831691,-200.0,0.00011327,2]
[339354754,1727461831702,-650.31451269,0.00011361,2]
[339354755,1727461831715,-411.71548731,0.00011361,2]
[339354756,1727461831725,-12.79814821,0.00011372,2]
[339354757,1727461831738,-293.41476327,0.00011372,2]
[339354758,1727461831751,-361.25708852,0.00011372,2]
[339354759,1727461831761,-400.99,0.00011386,2]
[339354760,1727461831772,-1486.42704088,0.00011386,2]
[339354761,1727461831785,-1620.19295912,0.00011386,2]
[339354762,1727461831796,-250.0,0.00011493,2]
[339354763,1727461831806,-251.88731642,0.00011499,2]
[339354764,1727461831818,-57.55268358,0.00011499,2]
[339354765,1727461831829,-156.39,0.00011521,2]
[339354766,1727461831841,-173.57,0.00011625,2]
[339354767,1727461831851,-499.99,0.00011625,2]
[339354768,1727461831863,-257.58,0.00011647,2]
[339354769,1727461831873,-1431.05,0.00011699,2]
[339354770,1727461831882,-323.42,0.00011699,2]
[339354771,1727461831893,-1000.0,0.00011742,2]
[339354772,1727461831903,-150.0,0.000118,2]
[339354773,1727461831913,-150.0,0.000118,2]
[339354774,1727461831925,-176.45948,0.00011869,2]
[339354775,1727461831935,-776.85,0.00011869,2]
[339354776,1727461831945,-153.285107,0.00011869,2]
[339354777,1727461831955,-810.0,0.00011897,2]
[339354778,1727461831965,-642.606,0.00011897,2]
[339354780,1727461831976,-1009.75066076,0.00011897,2]
[339354782,1727461831988,-286.24933924,0.00011897,2]
[339354784,1727461831999,-150.0,0.00011897,2]
[339354786,1727461832009,-168.72066076,0.00011897,2]
[339354789,1727461832026,-456.27933924,0.00011897,2]
[339354790,1727461832036,-172.14066076,0.00011897,2]
[339354791,1727461832049,-1090.85933924,0.00011897,2]
[339354792,1727461832059,-1000.0,0.00011927,2]
[339354793,1727461832069,-384.6,0.00011932,2]
[339354794,1727461832080,-8839.2680326,0.00012,2]
[339354795,1727461832090,-2000.0,0.00012,2]
[339354796,1727461832100,-753.88,0.00012055,2]
[339354797,1727461832111,-753.88,0.00012055,2]
[339354798,1727461832121,-753.88,0.00012055,2]
[339354799,1727461832131,-1601.49051415,0.00012083,2]
[339354800,1727461832141,-358.25,0.00012192,2]
[339354801,1727461832152,-358.25,0.00012192,2]
[339354802,1727461832162,-358.25,0.00012192,2]
[339354803,1727461832173,-358.25,0.00012192,2]
[339354804,1727461832183,-358.25,0.00012192,2]
[339354805,1727461832193,-358.25,0.00012192,2]
[339354806,1727461832203,-358.25,0.00012192,2]
[339354807,1727461832213,-358.25,0.00012192,2]
[339354808,1727461832223,-255.0,0.0001238,2]
[339354809,1727461832235,-420.0,0.00012382,2]
[339354810,1727461832245,-7476.4795,0.00012387,2]
[339354811,1727461832255,-1033.5599,0.00012387,2]
[339354812,1727461832265,-167.21,0.00012445,2]
[339354813,1727461832275,-247.06014866,0.00012463,2]
[339354814,1727461832285,-377.92172268,0.00012622,2]
[339354815,1727461832296,-500.0,0.00012797,2]
[339354816,1727461832306,-200.0,0.00012797,2]
[339354817,1727461832316,-391.26588372,0.00012799,2]
[339354818,1727461832328,-334.819,0.000128,2]
[339354819,1727461832338,-357.33354272,0.000128,2]
[339354820,1727461832348,-357.33354272,0.000128,2]
[339354821,1727461832359,-357.33354272,0.000128,2]
[339354822,1727461832371,-357.33354272,0.000128,2]
[339354823,1727461832382,-357.33354272,0.000128,2]
[339354824,1727461832392,-357.33354272,0.000128,2]
[339354825,1727461832402,-357.33354272,0.000128,2]
[339354826,1727461832413,-357.33354272,0.000128,2]
[339354827,1727461832432,-357.33354272,0.000128,2]
[339354828,1727461832442,-357.33354272,0.000128,2]
[339354829,1727461832454,-357.33354272,0.000128,2]
[339354830,1727461832465,-357.33354272,0.000128,2]
[339354831,1727461832475,-357.33354272,0.000128,2]
[339354832,1727461832486,-357.33354272,0.000128,2]
[339354833,1727461832497,-357.33354272,0.000128,2]
[339354834,1727461832507,-357.33354272,0.000128,2]
[339354835,1727461832518,-357.33354272,0.000128,2]
[339354836,1727461832530,-357.33354272,0.000128,2]
[339354837,1727461832540,-357.33354272,0.000128,2]
[339354838,1727461832551,-357.83,0.000128,2]
[339354839,1727461832561,-15398.59240979,0.000128,2]
[339354840,1727461832572,-154.94534757,0.000128,2]
[339354841,1727461832583,-154.94534757,0.000128,2]
[339354842,1727461832594,-154.94534757,0.000128,2]
[339354843,1727461832604,-154.94534757,0.000128,2]
[339354844,1727461832615,-154.94534757,0.000128,2]
[339354845,1727461832625,-154.94534757,0.000128,2]
[339354846,1727461832635,-154.94534757,0.000128,2]
[339354847,1727461832646,-154.94534757,0.000128,2]
[339354848,1727461832656,-154.94534757,0.000128,2]
[339354849,1727461832669,-154.94534757,0.000128,2]
[339354850,1727461832681,-154.94534757,0.000128,2]
[339354851,1727461832691,-154.94534757,0.000128,2]
[339354852,1727461832702,-154.94534757,0.000128,2]
[339354853,1727461832712,-154.94534757,0.000128,2]
[339354854,1727461832723,-155.44,0.000128,2]
[339354855,1727461832734,-150.57815945,0.000128,2]
[339354856,1727461832744,-204.70241534,0.000128,2]
[339354857,1727461832755,-150.57815945,0.000128,2]
[339354858,1727461832767,-150.57815945,0.000128,2]
[339354859,1727461832776,-150.57815945,0.000128,2]
[339354860,1727461832787,-150.57815945,0.000128,2]
[339354861,1727461832796,-150.57815945,0.000128,2]
[339354862,1727461832807,-150.57815945,0.000128,2]
[339354863,1727461832817,-150.57815945,0.000128,2]
[339354864,1727461832827,-150.57815945,0.000128,2]
[339354865,1727461832837,-150.57815945,0.000128,2]
[339354866,1727461832847,-150.57815945,0.000128,2]
[339354867,1727461832857,-150.57815945,0.000128,2]
[339354868,1727461832867,-150.57815945,0.000128,2]
[339354869,1727461832877,-150.57815945,0.000128,2]
[339354870,1727461832887,-150.57815945,0.000128,2]
[339354871,1727461832897,-150.57815945,0.000128,2]
[339354872,1727461832907,-150.57815945,0.000128,2]
[339354873,1727461832917,-150.57815945,0.000128,2]
[339354874,1727461832929,-150.57815945,0.000128,2]
[339354875,1727461832939,-151.07,0.000128,2]
[339354876,1727461832950,-391.26588364,0.0001281,2]
[339354877,1727461832960,-391.26588364,0.00012821,2]
[339354878,1727461832970,-1000.0,0.00012829,2]
[339354879,1727461832980,-4584.10215932,0.0001283,7]
[339354880,1727461832994,-2331.32555382,0.0001283,7]
[339354883,1727461837512,-412.45240119,0.0001283,7]
[339354884,1727461837524,-2836.81795926,0.0001283,7]
[339354885,1727461837535,-391.26588364,0.00012833,2]
[339354887,1727461837545,-391.26588364,0.00012844,2]
[339354888,1727461837555,-391.26588364,0.00012855,2]
[339354889,1727461837563,-7602.60479236,0.00012866,2]
[339354890,1727461837629,-1120.66502401,0.00012866,2]
[339354891,1727461837743,-1628.41494399,0.00012866,2]
[339354892,1727461837755,-2758.23380241,0.00012866,2]
[339354893,1727461837766,-879.14563992,0.00012866,2]
[339354894,1727461837778,-2646.2132724,0.00012866,2]
[339354895,1727461837789,-1886.88,0.00012866,2]
[339354896,1727461837800,-878.53945113,0.00012866,2]
[339354897,1727461837884,-30599.30307378,0.00012866,2]
[339354898,1727461837895,-391.26588364,0.00012866,2]
[339354899,1727461837904,-568.11948446,0.00012873,2]
[339354900,1727461837915,-500.0,0.00012873,2]
[339354901,1727461837926,-391.26588364,0.00012878,2]
[339354902,1727461837935,-391.26588364,0.00012889,2]
[339354903,1727461837944,-500.0,0.00012899,2]
[339354904,1727461837953,-507.13165363,0.00012899,2]
[339354905,1727461837962,-529.52758615,0.00012899,2]
[339354906,1727461837971,-2161.57743773,0.00012899,2]
[339355004,1727461839500,-8821.05163107,0.00012899,2]
[339355005,1727461839510,-70585.4606108,0.00012899,2]
[339355008,1727461839520,-500.0,0.00012899,2]
[339355009,1727461839532,-500.0,0.00012899,2]
[339355011,1727461839542,-500.0,0.00012899,2]
[339355014,1727461839552,-400.76,0.00012899,2]
[339355016,1727461839562,-4069.2222506,0.00012899,2]
[339355018,1727461839572,-511.0,0.000129,2]
[339355019,1727461839581,-392788.29875663,0.000129,2]
[339355022,1727461839592,-1432.93385556,0.000129,2]
[339355081,1727461840231,-57573.44628321,0.000129,2]
[339355082,1727461840244,-500.0,0.000129,2]
[339355083,1727461840254,-551378.19896174,0.000129,2]
[339355084,1727461840274,-394.357,0.000129,2]
[339355137,1727461842515,-173.65,0.00011981,2]
[339355138,1727461842525,-271.14155,0.000129,2]
[339355139,1727461842537,-5550.89523965,0.000129,2]
[339355143,1727461845530,-358.25,0.000127,2]
[339355144,1727461845543,-500.0,0.00012873,2]
[339355145,1727461845553,-496.45535642,0.000129,2]
[339355146,1727461845565,-11.54464358,0.000129,2]
[339355147,1727461845574,-1894.64136589,0.000129,2]
[339355148,1727461845585,-8999.29505237,0.000129,2]
[339355149,1727461845597,-327.09108309,0.000129,2]
[339355150,1727461845609,-634.41,0.000129,2]
[339355151,1727461845670,-9641.70396337,0.000129,2]
[339355152,1727461845683,-635.84286283,0.000129,2]
[339355156,1727461867659,1050.0,0.00011,2]
[339355157,1727461910374,273.17,0.00013918,30]
[339355158,1727462167248,292.17,9.986e-05,2]
[339355159,1727462484144,259.51,0.00013918,30]
[339355160,1727462720704,160.07,0.00010959,2]
[339355170,1727462839787,1663.49931422,0.00011,2]
[339355171,1727462941423,277.56,9.391e-05,2]
[339355196,1727463031669,-232.47,0.00011321,2]
[339355198,1727463031680,-250.0,0.00011321,2]
[339355200,1727463031690,-307.68,0.00011324,2]
[339355202,1727463031700,-300.0,0.0001136,2]
[339355203,1727463031710,-53.88705431,0.00011361,2]
[339355204,1727463031721,-700.0,0.00011361,2]
[339355205,1727463031733,-2765.6778511,0.00011361,2]
[339355206,1727463031748,-1238.62357742,0.00011361,2]
[339355207,1727463031761,-1103.55713475,0.00011361,2]
[339355208,1727463031773,-6351.8,0.00011361,2]
[339355209,1727463031828,-303.19,0.00011361,2]
[339355210,1727463031840,-281.36826601,0.00011361,2]
[339355211,1727463031852,-9130.15402162,0.00011361,2]
[339355212,1727463031864,-1971.74209479,0.00011361,2]
[339355213,1727463031874,-250.0,0.00011365,2]
[339355214,1727463031886,-200.0,0.00011399,2]
[339355215,1727463031896,-250.0,0.00011443,2]
[339355216,1727463031906,-2000.0,0.00011445,2]
[339355217,1727463031916,-173.56,0.00011572,2]
[339355218,1727463031926,-150.0,0.00011589,2]
[339355219,1727463031936,-301.21,0.00011616,2]
[339355220,1727463031946,-499.99,0.00011616,2]
[339355221,1727463031958,-150.0,0.00011644,2]
[339355222,1727463031967,-277.56,0.00011655,2]
[339355223,1727463031977,-446.76087428,0.000118,2]
[339355242,1727463032812,246.53,0.00013918,30]
[339355254,1727463037784,-1073.301799,0.00011264,2]
[339355255,1727463037795,-402.83912572,0.000118,2]
[339355256,1727463037804,-205.95,0.00011911,2]
[339355257,1727463037814,-1000.0,0.00011932,2]
[339355258,1727463037823,-1.49821081,0.00011999,2]
[339355259,1727463037834,-619.50178919,0.00011999,2]
[339355260,1727463037844,-268.3283742,0.00011999,2]
[339355261,1727463037859,-994.6716258,0.00011999,2]
[339355262,1727463037869,-426.424,0.00011999,2]
[339355263,1727463037878,-150.0,0.00011999,2]
[339355264,1727463037890,-150.0,0.00011999,2]
[339355265,1727463037900,-1000.0,0.00012,2]
[339355266,1727463037909,-255.56,0.00012041,2]
[339355267,1727463037919,-150.0,0.00012054,2]
[339355268,1727463037929,-4041.62884868,0.00012055,2]
[339355269,1727463037940,-8270.36564238,0.00012055,2]
[339355270,1727463037952,-10057.64443999,0.00012055,2]
[339355271,1727463038111,-742.11629914,0.00012055,2]
[339355272,1727463038123,-277.0527081,0.00012055,2]
[339355273,1727463038134,-21.21206171,0.00012055,2]
[339355274,1727463038143,-358.25,0.00012178,2]
[339355275,1727463038152,-713.54,0.00012178,2]
[339355276,1727463038162,-171.59,0.00012445,2]
[339355277,1727463038171,-420.0,0.00012479,2]
[339355278,1727463038180,-307.68,0.00012739,2]
[339355279,1727463038190,-167.05,0.00012761,2]
[339355280,1727463038200,-315.696,0.0001279,2]
[339355281,1727463038212,-179.567,0.0001279,2]
[339355282,1727463038223,-500.0,0.00012797,2]
[339355283,1727463038233,-200.0,0.00012797,2]
[339355284,1727463038244,-13080.00603529,0.000128,2]
[339355308,1727463039715,-2482.81436471,0.000128,2]
[339355309,1727463039726,-5367.3529,0.000128,2]
[339355310,1727463039735,-10214.6905,0.000128,2]
[339355311,1727463039744,-24875.01744194,0.000128,2]
[339355312,1727463039756,-337.374,0.000128,2]
[339355313,1727463039783,-3880.48605806,0.000128,2]
[339355314,1727463039792,-161.7079,0.000128,2]
[339355315,1727463039803,-3430.51514059,0.000128,2]
[339355316,1727463039972,-382.49801428,0.000128,2]
[339355317,1727463040153,-420.525589,0.000128,2]
[339355350,1727463040562,-738.3559997,0.000128,2]
[339355513,1727463042890,-4342.00319205,0.00011999,2]
[339355514,1727463042902,-412.84685196,0.00011999,2]
[339355515,1727463042912,-113.98523477,0.000128,2]
[339355516,1727463042959,-802.06340159,0.000128,2]
[339355517,1727463043031,-610.11412007,0.000128,2]
[339355518,1727463043041,-195.63294182,0.000128,2]
[339355519,1727463043052,-3113.04401861,0.000128,2]
[339355520,1727463043063,-1963.95623651,0.000128,2]
[339355521,1727463043075,-436.4889855,0.000128,2]
[339355522,1727463043086,-520.26401847,0.000128,2]
[339355524,1727463045614,-850.0,0.000128,2]
[339355526,1727463045686,-165.2583,0.000128,2]
[339355527,1727463045696,-1466.24674091,0.000128,2]
[339355528,1727463045706,-285.8618696,0.000128,2]
[339355529,1727463045717,-285.8618696,0.000128,2]
[339355530,1727463045726,-285.8618696,0.000128,2]
[339355531,1727463045736,-285.8618696,0.000128,2]
[339355532,1727463045745,-285.8618696,0.000128,2]
[339355533,1727463045756,-285.8618696,0.000128,2]
[339355534,1727463045765,-285.8618696,0.000128,2]
[339355535,1727463045775,-285.8618696,0.000128,2]
[339355536,1727463045784,-285.8618696,0.000128,2]
[339355537,1727463045794,-285.8618696,0.000128,2]
[339355538,1727463045804,-63.69528439,0.000128,2]
[339355539,1727463045816,-222.16658521,0.000128,2]
[339355540,1727463045825,-210.60457735,0.000128,2]
[339355541,1727463045836,-75.25729225,0.000128,2]
[339355542,1727463045846,-285.8618696,0.000128,2]
[339355543,1727463045855,-285.8618696,0.000128,2]
[339355544,1727463045865,-285.8618696,0.000128,2]
[339355545,1727463045874,-285.8618696,0.000128,2]
[339355546,1727463045885,-285.8618696,0.000128,2]
[339355547,1727463045895,-285.8618696,0.000128,2]
[339355548,1727463045904,-285.8618696,0.000128,2]
[339355549,1727463045914,-286.36,0.000128,2]
[339355550,1727463045923,-154.93710337,0.000128,2]
[339355551,1727463045934,-154.93710337,0.000128,2]
[339355552,1727463045943,-154.93710337,0.000128,2]
[339355553,1727463045953,-154.93710337,0.000128,2]
[339355554,1727463045964,-154.93710337,0.000128,2]
[339355555,1727463045973,-154.93710337,0.000128,2]
[339355556,1727463045982,-154.93710337,0.000128,2]
[339355557,1727463045992,-154.93710337,0.000128,2]
[339355558,1727463046002,-154.93710337,0.000128,2]
[339355559,1727463046011,-154.93710337,0.000128,2]
[339355560,1727463046020,-154.93710337,0.000128,2]
[339355561,1727463046029,-155.43,0.000128,2]
[339355562,1727463046040,-150.57201144,0.000128,2]
[339355563,1727463046050,-150.57201144,0.000128,2]
[339355564,1727463046060,-150.57201144,0.000128,2]
[339355565,1727463046069,-150.57201144,0.000128,2]
[339355566,1727463046079,-150.57201144,0.000128,2]
[339355567,1727463046088,-150.57201144,0.000128,2]
[339355569,1727463046097,-150.57201144,0.000128,2]
[339355570,1727463046106,-150.57201144,0.000128,2]
[339355571,1727463046115,-150.57201144,0.000128,2]
[339355572,1727463046124,-150.57201144,0.000128,2]
[339355573,1727463046133,-72.60856908,0.000128,2]
[339355574,1727463046153,-77.96344236,0.000128,2]
[339355575,1727463046163,-150.57201144,0.000128,2]
[339355576,1727463046172,-150.57201144,0.000128,2]
[339355577,1727463046183,-150.57201144,0.000128,2]
[339355578,1727463046192,-150.57201144,0.000128,2]
[339355579,1727463046201,-88.59851188,0.000128,2]
[339355580,1727463046212,-62.47148812,0.000128,2]
[339355581,1727463046223,-150.56,0.00012873,2]
[339355582,1727463046232,-262.63293722,0.00012873,2]
[339355583,1727463046243,-500.0,0.00012899,2]
[339355584,1727463046253,-253.56582681,0.00012899,2]
[339355585,1727463046263,-1475.28643953,0.00012899,3]
[339355586,1727463046272,-1475.28643953,0.00012899,3]
[339355587,1727463046283,-500.0,0.00012899,2]
[339355588,1727463046295,-345.07720371,0.00012899,2]
[339355589,1727463046316,-154.92279629,0.00012899,2]
[339355590,1727463046325,-191.84694728,0.00012899,2]
[339355591,1727463046338,-308.15305272,0.00012899,2]
[339355592,1727463046347,-363.28276129,0.00012899,2]
[339355593,1727463046357,-464.39230023,0.00012899,2]
[339355594,1727463046368,-37.85334746,0.00012899,2]
[339355595,1727463046378,-500.0,0.00012899,2]
[339355596,1727463046388,-388.33619693,0.00012899,2]
[339355597,1727463046397,-229.04583271,0.00012899,2]
[339355598,1727463046406,-298.707935,0.00012899,2]
[339355599,1727463046416,-4091.7156418,0.00012899,2]
[339355600,1727463046425,-500.0,0.00012899,2]
[339355601,1727463046434,-500.0,0.00012899,2]
[339355602,1727463046444,-29599.58488772,0.000129,2]
[339355603,1727463046454,-34253.45091569,0.000129,2]
[339355606,1727463478632,289.52,9.949e-05,2]
[339355607,1727463688220,1050.0,0.00011,2]
[339355608,1727463708821,234.2,0.00013918,30]
[339355635,1727464059166,275.04,9.869e-05,2]
[339355643,1727464172560,284.88,0.00010959,2]
[339355646,1727464231823,-420.1107,0.00011626,2]
[339355647,1727464231833,-250.0,0.00011685,2]
[339355648,1727464231842,-575.7,0.00011691,2]
[339355649,1727464231851,-111.22558517,0.0001172,2]
[339355650,1727464231900,-138.77441483,0.0001172,2]
[339355651,1727464231910,-366.90331097,0.00011751,2]
[339355652,1727464231976,-567.49668903,0.00011751,2]
[339355653,1727464231986,-290.97,0.00011751,2]
[339355654,1727464231996,-164.76,0.00011754,2]
[339355655,1727464232006,-300.0,0.00011786,2]
[339355656,1727464232016,-23900.0,0.00011787,2]